Workbook

Sheet Formulario
B2: *Equipo de Gestión de la Información - EBR | BN2: Versión: 1.1
C3: FORMULARIO PARA EL AJUSTE DEL CURRÍCULO NACIONAL
J6: A continuación, presentamos un cuestionario que permitirá recoger los aportes de la ciudadanía respecto al proceso de Ajuste Curricular, cuyo documento general está disponible en el siguiente link: http://www.minedu.gob.pe/curriculo/pdf/cn-documento-general-para-consulta.pdf. Los resultados de esta herramienta, se sistematizarán y serán tomados en cuenta para la elaboración de la versión final del Currículo Nacional ajustado, así como en la preparación y ejecución del proceso de implementación.
C10: DATOS DEL ENCUESTADO:
C12: EDAD | H12: REGIÓN | S12: PROVINCIA / CIUDAD | AK12: GÉNERO | AP12: ¿TIENE HIJOS? | AW12: GRUPO AL QUE PERTENECE
C14: COMPLETANDO LAS PREGUNTAS DEL FORMULARIO:
C16: ¿CUÁL ES SU OPINIÓN SOBRE LAS SIGUIENTES AFIRMACIONES? | P16: RESPUESTA (Seleccione la opción que se acerque a su opinión) | W16: DETALLE DE RESPUESTA (Para cada una de sus respuestas, usted deberá de detallar o justificar su elección, a fin de que el ajuste curricular esté lo más sustentado posible. Ampliar su respuesta en un máximo de 300 caracteres)
C19: El documento me parece claro y suficientemente informativo.
C22: El enfoque por competencias me parece útil para el aprendizaje de los estudiantes.
C25: Los estándares de aprendizajes son sencillos de usar y adecuados para los docentes.
C28: La distribución de horas en los planes de estudios, es la más conveniente para el aprendizaje integral de los estudiantes.
C31: La evaluación formativa de competencias fortalece los procesos de aprendizaje de los estudiantes.
C34: La tutoría y la orientación educativa aporta al desarrollo integral de los estudiantes.
C37: Las TIC contribuyen a optimizar los aprendizajes y a hacer más efectivo el trabajo pedagógico en el aula.
C40: El Currículo Nacional debe diversificar los aprendizajes según las características de los estudiantes de cada región.
C43: COMENTARIOS ADICIONALES SOBRE EL AJUSTE CURRICULAR:
BN48: =IF($B$2="","",$B$2) -> *Equipo de Gestión de la Información - EBR

Sheet DBExcel (hidden)
A1: ITEM | B1: JUSTIFICAR | C1: EDAD | D1: GENERO | E1: PADRE | F1: GRUPO AL QUE PERTENECE | L1: 0 | M1: REGION | N1: 1 | O1: PROVINCIA / CIUDAD | Q1: ID | R1: =Formulario!C12 -> EDAD | S1: =Formulario!H12 -> REGIÓN | T1: =Formulario!S12 -> PROVINCIA / CIUDAD | U1: =Formulario!AK12 -> GÉNERO | V1: =Formulario!AP12 -> ¿TIENE HIJOS? | W1: =Formulario!AW12 -> GRUPO AL QUE PERTENECE | X1: =Formulario!C19 -> El documento me parece claro y suficientemente informativo. | Y1: =X1 -> El documento me parece claro y suficientemente informativo. | Z1: =Formulario!C22 -> El enfoque por competencias me parece útil para el aprendizaje de los estudiantes. | AA1: =Z1 -> El enfoque por competencias me parece útil para el aprendizaje de los estudiantes. | AB1: =Formulario!C25 -> Los estándares de aprendizajes son sencillos de usar y adecuados para los docentes. | AC1: =AB1 -> Los estándares de aprendizajes son sencillos de usar y adecuados para los docentes. | AD1: =Formulario!C28 -> La distribución de horas en los planes de estudios, es la más conveniente para el aprendizaje integral de los estudiantes. | AE1: La distribución de horas en los planes de estudios, es la más conveniente para el aprendizaje integral de los estudiantes. | AF1: =Formulario!C31 -> La evaluación formativa de competencias fortalece los procesos de aprendizaje de los estudiantes. | AG1: La evaluación formativa de competencias fortalece los procesos de aprendizaje de los estudiantes. | AH1: =Formulario!C34 -> La tutoría y la orientación educativa aporta al desarrollo integral de los estudiantes. | AI1: La tutoría y la orientación educativa aporta al desarrollo integral de los estudiantes. | AJ1: =Formulario!C37 -> Las TIC contribuyen a optimizar los aprendizajes y a hacer más efectivo el trabajo pedagógico en el aula. | AK1: Las TIC contribuyen a optimizar los aprendizajes y a hacer más efectivo el trabajo pedagógico en el aula. | AL1: =Formulario!C40 -> El Currículo Nacional debe diversificar los aprendizajes según las características de los estudiantes de cada región. | AM1: El Currículo Nacional debe diversificar los aprendizajes según las características de los estudiantes de cada región. | AN1: =Formulario!C43 -> COMENTARIOS ADICIONALES SOBRE EL AJUSTE CURRICULAR:
A2: =ROW(A1) -> 1 | L2: =IF(I2<>I1,L1+1,L1) -> 0 | M2: =IF($A2=1,"",IF(LOOKUP($A2-1,L:L,I:I)="","",LOOKUP($A2-1,L:L,I:I))) ->  | N2: =IF(I1=Formulario!$K$12,N1+1,N1) -> 2 | O2: =IF($A2=1,"",IF(LOOKUP($A2-1,N:N,J:J)="","",LOOKUP($A2-1,N:N,J:J))) ->  | Q2: =INFO("DIRECTORIO")&INFO("VERSION")&INFO("VERSIONSO") -> D:\acarballido\Documents\15.0Windows (64-bit) NT 6.02 | R2: =IF(Formulario!$F$12="","",Formulario!$F$12) ->  | S2: =IF(Formulario!$K$12="","",Formulario!$K$12) ->  | T2: =IF(Formulario!$Z$12="","",Formulario!$Z$12) ->  | U2: =IF(Formulario!$AN$12="","",Formulario!$AN$12) ->  | V2: =IF(Formulario!$AU$12="","",Formulario!$AU$12) ->  | W2: =IF(Formulario!$BE$12="","",Formulario!$BE$12) ->  | X2: =IF(Formulario!$P$19="","",Formulario!$P$19) ->  | Y2: =IF(Formulario!$W$19="","",Formulario!$W$19) ->  | Z2: =IF(Formulario!$P$22="","",Formulario!$P$22) ->  | AA2: =IF(Formulario!$W$22="","",Formulario!$W$22) ->  | AB2: =IF(Formulario!$P$25="","",Formulario!$P$25) ->  | AC2: =IF(Formulario!$W$25="","",Formulario!$W$25) ->  | AD2: =IF(Formulario!$P$28="","",Formulario!$P$28) ->  | AE2: =IF(Formulario!$W$28="","",Formulario!$W$28) ->  | AF2: =IF(Formulario!$P$31="","",Formulario!$P$31) ->  | AG2: =IF(Formulario!$W$31="","",Formulario!$W$31) ->  | AH2: =IF(Formulario!$P$34="","",Formulario!$P$34) ->  | AI2: =IF(Formulario!$W$34="","",Formulario!$W$34) ->  | AJ2: =IF(Formulario!$P$37="","",Formulario!$P$37) ->  | AK2: =IF(Formulario!$W$37="","",Formulario!$W$37) ->  | AL2: =IF(Formulario!$P$40="","",Formulario!$P$40) ->  | AM2: =IF(Formulario!$W$40="","",Formulario!$W$40) ->  | AN2: =IF(Formulario!$C$45="","",Formulario!$C$45) -> 
A3: =ROW(A2) -> 2 | B3: Totalmente De Acuerdo | C3: =A3+9-1 -> 10 | D3: M | E3: SI | F3: DOCENTE | L3: =IF(I3<>I2,L2+1,L2) -> 0 | M3: =IF($A3=1,"",IF(LOOKUP($A3-1,L:L,I:I)="","",LOOKUP($A3-1,L:L,I:I))) ->  | N3: =IF(I2=Formulario!$K$12,N2+1,N2) -> 3 | O3: =IF($A3=1,"",IF(LOOKUP($A3-1,N:N,J:J)="","",LOOKUP($A3-1,N:N,J:J))) ->  | Q3: =SUM(R3:AN3) -> 23 | R3: =IF(R2="",1,0) -> 1 | S3: =IF(S2="",1,0) -> 1 | T3: 1 | U3: 1 | V3: 1 | W3: 1 | X3: 1 | Y3: 1 | Z3: 1 | AA3: 1 | AB3: 1 | AC3: 1 | AD3: =IF(AD2="",1,0) -> 1 | AE3: 1 | AF3: 1 | AG3: 1 | AH3: 1 | AI3: 1 | AJ3: 1 | AK3: 1 | AL3: 1 | AM3: 1 | AN3: 1
A4: 3 | B4: De Acuerdo | C4: =A4+9-1 -> 11 | D4: F | E4: NO | F4: ESTUDIANTE | L4: 0 | N4: =IF(I3=Formulario!$K$12,N3+1,N3) -> 4
A5: 4 | B5: Ni En Acuerdo / Ni En Desacuerdo | C5: 12 | F5: NO CUENTA CON TRABAJO | L5: 0 | N5: =IF(I4=Formulario!$K$12,N4+1,N4) -> 5
A6: 5 | B6: En Desacuerdo | C6: 13 | F6: RESPONSABLE DEL HOGAR | L6: 0 | N6: =IF(I5=Formulario!$K$12,N5+1,N5) -> 6 | AC6: =COLUMN(AC5) -> 29
A7: 6 | B7: Totalmente En Desacuerdo | C7: 14 | F7: TRABAJADOR ONG | L7: 0 | N7: =IF(I6=Formulario!$K$12,N6+1,N6) -> 7
A8: 7 | C8: 15 | F8: TRABAJADOR PRIVADO | L8: 0 | N8: =IF(I7=Formulario!$K$12,N7+1,N7) -> 8 | Q8: MENSAJE:
A9: 8 | C9: 16 | F9: TRABAJADOR PUBLICO | L9: 0 | N9: =IF(I8=Formulario!$K$12,N8+1,N8) -> 9 | Q9: =IF($Q$3=0,"¡EXCELENTE! HA COMPLETADO CORRECTAMENTE EL FORMULARIO, GRACIAS",IF($Q$3=1,"FALTA COMPLETAR 1 REGISTRO","FALTA COMPLETAR "&$Q$3&" REGISTROS")) -> FALTA COMPLETAR 23 REGISTROS
A10: 9 | C10: 17 | L10: 0 | N10: =IF(I9=Formulario!$K$12,N9+1,N9) -> 10 | Q10: =IF(H1="","Activar","") -> Activar
A11: 10 | C11: 18 | L11: 0 | N11: =IF(I10=Formulario!$K$12,N10+1,N10) -> 11 | Q11: =IF(H1="","Clic","") -> Clic
A12: 11 | C12: 19 | L12: 0 | N12: =IF(I11=Formulario!$K$12,N11+1,N11) -> 12
A13: 12 | C13: 20 | L13: 0 | N13: =IF(I12=Formulario!$K$12,N12+1,N12) -> 13
A14: 13 | C14: 21 | L14: 0 | N14: =IF(I13=Formulario!$K$12,N13+1,N13) -> 14
A15: 14 | C15: 22 | L15: 0 | N15: =IF(I14=Formulario!$K$12,N14+1,N14) -> 15
A16: 15 | C16: 23 | L16: 0 | N16: =IF(I15=Formulario!$K$12,N15+1,N15) -> 16
A17: 16 | C17: 24 | L17: 0 | N17: =IF(I16=Formulario!$K$12,N16+1,N16) -> 17
A18: 17 | C18: 25 | L18: 0 | N18: =IF(I17=Formulario!$K$12,N17+1,N17) -> 18
A19: 18 | C19: 26 | L19: 0 | N19: =IF(I18=Formulario!$K$12,N18+1,N18) -> 19
A20: 19 | C20: 27 | L20: 0 | N20: =IF(I19=Formulario!$K$12,N19+1,N19) -> 20
A21: 20 | C21: 28 | L21: 0 | N21: =IF(I20=Formulario!$K$12,N20+1,N20) -> 21
A22: 21 | C22: 29 | L22: 0 | N22: =IF(I21=Formulario!$K$12,N21+1,N21) -> 22
A23: 22 | C23: 30 | L23: 0 | N23: =IF(I22=Formulario!$K$12,N22+1,N22) -> 23
A24: 23 | C24: 31 | L24: 0 | N24: =IF(I23=Formulario!$K$12,N23+1,N23) -> 24
A25: 24 | C25: 32 | L25: 0 | N25: =IF(I24=Formulario!$K$12,N24+1,N24) -> 25
A26: 25 | C26: 33 | L26: 0 | N26: =IF(I25=Formulario!$K$12,N25+1,N25) -> 26
A27: 26 | C27: 34 | L27: 0 | N27: =IF(I26=Formulario!$K$12,N26+1,N26) -> 27
A28: 27 | C28: 35 | L28: 0 | N28: =IF(I27=Formulario!$K$12,N27+1,N27) -> 28
A29: 28 | C29: 36 | L29: 0 | N29: =IF(I28=Formulario!$K$12,N28+1,N28) -> 29
A30: 29 | C30: 37 | L30: 0 | N30: =IF(I29=Formulario!$K$12,N29+1,N29) -> 30
A31: 30 | C31: 38 | L31: 0 | N31: =IF(I30=Formulario!$K$12,N30+1,N30) -> 31
A32: 31 | C32: 39 | L32: 0 | N32: =IF(I31=Formulario!$K$12,N31+1,N31) -> 32
A33: 32 | C33: 40 | L33: 0 | N33: =IF(I32=Formulario!$K$12,N32+1,N32) -> 33
A34: 33 | C34: 41 | L34: 0 | N34: =IF(I33=Formulario!$K$12,N33+1,N33) -> 34
A35: 34 | C35: 42 | L35: 0 | N35: =IF(I34=Formulario!$K$12,N34+1,N34) -> 35
A36: 35 | C36: 43 | L36: 0 | N36: =IF(I35=Formulario!$K$12,N35+1,N35) -> 36
A37: 36 | C37: 44 | L37: 0 | N37: =IF(I36=Formulario!$K$12,N36+1,N36) -> 37
A38: 37 | C38: 45 | L38: 0 | N38: =IF(I37=Formulario!$K$12,N37+1,N37) -> 38
A39: 38 | C39: 46 | L39: 0 | N39: =IF(I38=Formulario!$K$12,N38+1,N38) -> 39
A40: 39 | C40: 47 | L40: 0 | N40: =IF(I39=Formulario!$K$12,N39+1,N39) -> 40
A41: 40 | C41: 48 | L41: 0 | N41: =IF(I40=Formulario!$K$12,N40+1,N40) -> 41
A42: 41 | C42: 49 | L42: 0 | N42: =IF(I41=Formulario!$K$12,N41+1,N41) -> 42
A43: 42 | C43: 50 | L43: 0 | N43: =IF(I42=Formulario!$K$12,N42+1,N42) -> 43
A44: 43 | C44: 51 | L44: 0 | N44: =IF(I43=Formulario!$K$12,N43+1,N43) -> 44
A45: 44 | C45: 52 | L45: 0 | N45: =IF(I44=Formulario!$K$12,N44+1,N44) -> 45
A46: 45 | C46: 53 | L46: 0 | N46: =IF(I45=Formulario!$K$12,N45+1,N45) -> 46
A47: 46 | C47: 54 | L47: 0 | N47: =IF(I46=Formulario!$K$12,N46+1,N46) -> 47
A48: 47 | C48: 55 | L48: 0 | N48: =IF(I47=Formulario!$K$12,N47+1,N47) -> 48
A49: 48 | C49: 56 | L49: 0 | N49: =IF(I48=Formulario!$K$12,N48+1,N48) -> 49
A50: 49 | C50: 57 | L50: 0 | N50: =IF(I49=Formulario!$K$12,N49+1,N49) -> 50
A51: 50 | C51: 58 | L51: 0 | N51: =IF(I50=Formulario!$K$12,N50+1,N50) -> 51
A52: 51 | C52: 59 | L52: 0 | N52: =IF(I51=Formulario!$K$12,N51+1,N51) -> 52
A53: 52 | C53: 60 | L53: 0 | N53: =IF(I52=Formulario!$K$12,N52+1,N52) -> 53
A54: 53 | C54: 61 | L54: 0 | N54: =IF(I53=Formulario!$K$12,N53+1,N53) -> 54
A55: 54 | C55: 62 | L55: 0 | N55: =IF(I54=Formulario!$K$12,N54+1,N54) -> 55
A56: 55 | C56: 63 | L56: 0 | N56: =IF(I55=Formulario!$K$12,N55+1,N55) -> 56
A57: 56 | C57: 64 | L57: 0 | N57: =IF(I56=Formulario!$K$12,N56+1,N56) -> 57
A58: 57 | C58: 65 | L58: 0 | N58: =IF(I57=Formulario!$K$12,N57+1,N57) -> 58
A59: 58 | C59: 66 | L59: 0 | N59: =IF(I58=Formulario!$K$12,N58+1,N58) -> 59
A60: 59 | C60: 67 | L60: 0 | N60: =IF(I59=Formulario!$K$12,N59+1,N59) -> 60
A61: 60 | C61: 68 | L61: 0 | N61: =IF(I60=Formulario!$K$12,N60+1,N60) -> 61
A62: 61 | C62: 69 | L62: 0 | N62: =IF(I61=Formulario!$K$12,N61+1,N61) -> 62
A63: 62 | C63: 70 | L63: 0 | N63: =IF(I62=Formulario!$K$12,N62+1,N62) -> 63
A64: 63 | C64: 71 | L64: 0 | N64: =IF(I63=Formulario!$K$12,N63+1,N63) -> 64
A65: 64 | C65: 72 | L65: 0 | N65: =IF(I64=Formulario!$K$12,N64+1,N64) -> 65
A66: 65 | C66: 73 | L66: 0 | N66: =IF(I65=Formulario!$K$12,N65+1,N65) -> 66
A67: =ROW(A66) -> 66 | C67: 74 | L67: =IF(I67<>I66,L66+1,L66) -> 0 | M67: =IF($A67=1,"",IF(LOOKUP($A67-1,L:L,I:I)="","",LOOKUP($A67-1,L:L,I:I))) ->  | N67: =IF(I66=Formulario!$K$12,N66+1,N66) -> 67 | O67: =IF($A67=1,"",IF(LOOKUP($A67-1,N:N,J:J)="","",LOOKUP($A67-1,N:N,J:J))) -> 
A68: 67 | C68: =A68+9-1 -> 75 | L68: 0 | N68: =IF(I67=Formulario!$K$12,N67+1,N67) -> 68
A69: 68 | C69: 76 | L69: 0 | N69: =IF(I68=Formulario!$K$12,N68+1,N68) -> 69
A70: 69 | C70: 77 | L70: 0 | N70: =IF(I69=Formulario!$K$12,N69+1,N69) -> 70
A71: 70 | C71: 78 | L71: 0 | N71: =IF(I70=Formulario!$K$12,N70+1,N70) -> 71
A72: 71 | C72: 79 | L72: 0 | N72: =IF(I71=Formulario!$K$12,N71+1,N71) -> 72
A73: 72 | C73: 80 | L73: 0 | N73: =IF(I72=Formulario!$K$12,N72+1,N72) -> 73
A74: 73 | C74: 81 | L74: 0 | N74: =IF(I73=Formulario!$K$12,N73+1,N73) -> 74
A75: 74 | C75: 82 | L75: 0 | N75: =IF(I74=Formulario!$K$12,N74+1,N74) -> 75
A76: 75 | C76: 83 | L76: 0 | N76: =IF(I75=Formulario!$K$12,N75+1,N75) -> 76
A77: 76 | C77: 84 | L77: 0 | N77: =IF(I76=Formulario!$K$12,N76+1,N76) -> 77
A78: 77 | C78: 85 | L78: 0 | N78: =IF(I77=Formulario!$K$12,N77+1,N77) -> 78
A79: 78 | C79: 86 | L79: 0 | N79: =IF(I78=Formulario!$K$12,N78+1,N78) -> 79
A80: 79 | C80: 87 | L80: 0 | N80: =IF(I79=Formulario!$K$12,N79+1,N79) -> 80
A81: 80 | C81: 88 | L81: 0 | N81: =IF(I80=Formulario!$K$12,N80+1,N80) -> 81
A82: 81 | C82: 89 | L82: 0 | N82: =IF(I81=Formulario!$K$12,N81+1,N81) -> 82
A83: 82 | C83: 90 | L83: 0 | N83: =IF(I82=Formulario!$K$12,N82+1,N82) -> 83
A84: 83 | L84: 0 | N84: =IF(I83=Formulario!$K$12,N83+1,N83) -> 84
A85: 84 | L85: 0 | N85: =IF(I84=Formulario!$K$12,N84+1,N84) -> 85
A86: 85 | L86: 0 | N86: =IF(I85=Formulario!$K$12,N85+1,N85) -> 86
A87: 86 | L87: 0 | N87: =IF(I86=Formulario!$K$12,N86+1,N86) -> 87
A88: 87 | L88: 0 | N88: =IF(I87=Formulario!$K$12,N87+1,N87) -> 88
A89: 88 | L89: 0 | N89: =IF(I88=Formulario!$K$12,N88+1,N88) -> 89
A90: 89 | L90: 0 | N90: =IF(I89=Formulario!$K$12,N89+1,N89) -> 90
A91: 90 | L91: 0 | N91: =IF(I90=Formulario!$K$12,N90+1,N90) -> 91
A92: 91 | L92: 0 | N92: =IF(I91=Formulario!$K$12,N91+1,N91) -> 92
A93: 92 | L93: 0 | N93: =IF(I92=Formulario!$K$12,N92+1,N92) -> 93
A94: 93 | L94: 0 | N94: =IF(I93=Formulario!$K$12,N93+1,N93) -> 94
A95: 94 | L95: 0 | N95: =IF(I94=Formulario!$K$12,N94+1,N94) -> 95
A96: 95 | L96: 0 | N96: =IF(I95=Formulario!$K$12,N95+1,N95) -> 96
A97: 96 | L97: 0 | N97: =IF(I96=Formulario!$K$12,N96+1,N96) -> 97
A98: 97 | L98: 0 | N98: =IF(I97=Formulario!$K$12,N97+1,N97) -> 98
A99: 98 | L99: 0 | N99: =IF(I98=Formulario!$K$12,N98+1,N98) -> 99
A100: 99 | L100: 0 | N100: =IF(I99=Formulario!$K$12,N99+1,N99) -> 100
A101: 100 | L101: 0 | N101: =IF(I100=Formulario!$K$12,N100+1,N100) -> 101
A102: 101 | L102: 0 | N102: =IF(I101=Formulario!$K$12,N101+1,N101) -> 102
A103: 102 | L103: 0 | N103: =IF(I102=Formulario!$K$12,N102+1,N102) -> 103
A104: 103 | L104: 0 | N104: =IF(I103=Formulario!$K$12,N103+1,N103) -> 104
A105: 104 | L105: 0 | N105: =IF(I104=Formulario!$K$12,N104+1,N104) -> 105
A106: 105 | L106: 0 | N106: =IF(I105=Formulario!$K$12,N105+1,N105) -> 106
A107: 106 | L107: 0 | N107: =IF(I106=Formulario!$K$12,N106+1,N106) -> 107
A108: 107 | L108: 0 | N108: =IF(I107=Formulario!$K$12,N107+1,N107) -> 108
A109: 108 | L109: 0 | N109: =IF(I108=Formulario!$K$12,N108+1,N108) -> 109
A110: 109 | L110: 0 | N110: =IF(I109=Formulario!$K$12,N109+1,N109) -> 110
A111: 110 | L111: 0 | N111: =IF(I110=Formulario!$K$12,N110+1,N110) -> 111
A112: 111 | L112: 0 | N112: =IF(I111=Formulario!$K$12,N111+1,N111) -> 112
A113: 112 | L113: 0 | N113: =IF(I112=Formulario!$K$12,N112+1,N112) -> 113
A114: 113 | L114: 0 | N114: =IF(I113=Formulario!$K$12,N113+1,N113) -> 114
A115: 114 | L115: 0 | N115: =IF(I114=Formulario!$K$12,N114+1,N114) -> 115
A116: 115 | L116: 0 | N116: =IF(I115=Formulario!$K$12,N115+1,N115) -> 116
A117: 116 | L117: 0 | N117: =IF(I116=Formulario!$K$12,N116+1,N116) -> 117
A118: 117 | L118: 0 | N118: =IF(I117=Formulario!$K$12,N117+1,N117) -> 118
A119: 118 | L119: 0 | N119: =IF(I118=Formulario!$K$12,N118+1,N118) -> 119
A120: 119 | L120: 0 | N120: =IF(I119=Formulario!$K$12,N119+1,N119) -> 120
A121: 120 | L121: 0 | N121: =IF(I120=Formulario!$K$12,N120+1,N120) -> 121
A122: 121 | L122: 0 | N122: =IF(I121=Formulario!$K$12,N121+1,N121) -> 122
A123: 122 | L123: 0 | N123: =IF(I122=Formulario!$K$12,N122+1,N122) -> 123
A124: 123 | L124: 0 | N124: =IF(I123=Formulario!$K$12,N123+1,N123) -> 124
A125: 124 | L125: 0 | N125: =IF(I124=Formulario!$K$12,N124+1,N124) -> 125
A126: 125 | L126: 0 | N126: =IF(I125=Formulario!$K$12,N125+1,N125) -> 126
A127: 126 | L127: 0 | N127: =IF(I126=Formulario!$K$12,N126+1,N126) -> 127
A128: 127 | L128: 0 | N128: =IF(I127=Formulario!$K$12,N127+1,N127) -> 128
A129: 128 | L129: 0 | N129: =IF(I128=Formulario!$K$12,N128+1,N128) -> 129
A130: 129 | L130: 0 | N130: =IF(I129=Formulario!$K$12,N129+1,N129) -> 130
A131: =ROW(A130) -> 130 | L131: =IF(I131<>I130,L130+1,L130) -> 0 | M131: =IF($A131=1,"",IF(LOOKUP($A131-1,L:L,I:I)="","",LOOKUP($A131-1,L:L,I:I))) ->  | N131: =IF(I130=Formulario!$K$12,N130+1,N130) -> 131 | O131: =IF($A131=1,"",IF(LOOKUP($A131-1,N:N,J:J)="","",LOOKUP($A131-1,N:N,J:J))) -> 
A132: 131 | L132: 0 | N132: =IF(I131=Formulario!$K$12,N131+1,N131) -> 132
A133: 132 | L133: 0 | N133: =IF(I132=Formulario!$K$12,N132+1,N132) -> 133
A134: 133 | L134: 0 | N134: =IF(I133=Formulario!$K$12,N133+1,N133) -> 134
A135: 134 | L135: 0 | N135: =IF(I134=Formulario!$K$12,N134+1,N134) -> 135
A136: 135 | L136: 0 | N136: =IF(I135=Formulario!$K$12,N135+1,N135) -> 136
A137: 136 | L137: 0 | N137: =IF(I136=Formulario!$K$12,N136+1,N136) -> 137
A138: 137 | L138: 0 | N138: =IF(I137=Formulario!$K$12,N137+1,N137) -> 138
A139: 138 | L139: 0 | N139: =IF(I138=Formulario!$K$12,N138+1,N138) -> 139
A140: 139 | L140: 0 | N140: =IF(I139=Formulario!$K$12,N139+1,N139) -> 140
A141: 140 | L141: 0 | N141: =IF(I140=Formulario!$K$12,N140+1,N140) -> 141
A142: 141 | L142: 0 | N142: =IF(I141=Formulario!$K$12,N141+1,N141) -> 142
A143: 142 | L143: 0 | N143: =IF(I142=Formulario!$K$12,N142+1,N142) -> 143
A144: 143 | L144: 0 | N144: =IF(I143=Formulario!$K$12,N143+1,N143) -> 144
A145: 144 | L145: 0 | N145: =IF(I144=Formulario!$K$12,N144+1,N144) -> 145
A146: 145 | L146: 0 | N146: =IF(I145=Formulario!$K$12,N145+1,N145) -> 146
A147: 146 | L147: 0 | N147: =IF(I146=Formulario!$K$12,N146+1,N146) -> 147
A148: 147 | L148: 0 | N148: =IF(I147=Formulario!$K$12,N147+1,N147) -> 148
A149: 148 | L149: 0 | N149: =IF(I148=Formulario!$K$12,N148+1,N148) -> 149
A150: 149 | L150: 0 | N150: =IF(I149=Formulario!$K$12,N149+1,N149) -> 150
A151: 150 | L151: 0 | N151: =IF(I150=Formulario!$K$12,N150+1,N150) -> 151
A152: 151 | L152: 0 | N152: =IF(I151=Formulario!$K$12,N151+1,N151) -> 152
A153: 152 | L153: 0 | N153: =IF(I152=Formulario!$K$12,N152+1,N152) -> 153
A154: 153 | L154: 0 | N154: =IF(I153=Formulario!$K$12,N153+1,N153) -> 154
A155: 154 | L155: 0 | N155: =IF(I154=Formulario!$K$12,N154+1,N154) -> 155
A156: 155 | L156: 0 | N156: =IF(I155=Formulario!$K$12,N155+1,N155) -> 156
A157: 156 | L157: 0 | N157: =IF(I156=Formulario!$K$12,N156+1,N156) -> 157
A158: 157 | L158: 0 | N158: =IF(I157=Formulario!$K$12,N157+1,N157) -> 158
A159: 158 | L159: 0 | N159: =IF(I158=Formulario!$K$12,N158+1,N158) -> 159
A160: 159 | L160: 0 | N160: =IF(I159=Formulario!$K$12,N159+1,N159) -> 160
A161: 160 | L161: 0 | N161: =IF(I160=Formulario!$K$12,N160+1,N160) -> 161
A162: 161 | L162: 0 | N162: =IF(I161=Formulario!$K$12,N161+1,N161) -> 162
A163: 162 | L163: 0 | N163: =IF(I162=Formulario!$K$12,N162+1,N162) -> 163
A164: 163 | L164: 0 | N164: =IF(I163=Formulario!$K$12,N163+1,N163) -> 164
A165: 164 | L165: 0 | N165: =IF(I164=Formulario!$K$12,N164+1,N164) -> 165
A166: 165 | L166: 0 | N166: =IF(I165=Formulario!$K$12,N165+1,N165) -> 166
A167: 166 | L167: 0 | N167: =IF(I166=Formulario!$K$12,N166+1,N166) -> 167
A168: 167 | L168: 0 | N168: =IF(I167=Formulario!$K$12,N167+1,N167) -> 168
A169: 168 | L169: 0 | N169: =IF(I168=Formulario!$K$12,N168+1,N168) -> 169
A170: 169 | L170: 0 | N170: =IF(I169=Formulario!$K$12,N169+1,N169) -> 170
A171: 170 | L171: 0 | N171: =IF(I170=Formulario!$K$12,N170+1,N170) -> 171
A172: 171 | L172: 0 | N172: =IF(I171=Formulario!$K$12,N171+1,N171) -> 172
A173: 172 | L173: 0 | N173: =IF(I172=Formulario!$K$12,N172+1,N172) -> 173
A174: 173 | L174: 0 | N174: =IF(I173=Formulario!$K$12,N173+1,N173) -> 174
A175: 174 | L175: 0 | N175: =IF(I174=Formulario!$K$12,N174+1,N174) -> 175
A176: 175 | L176: 0 | N176: =IF(I175=Formulario!$K$12,N175+1,N175) -> 176
A177: 176 | L177: 0 | N177: =IF(I176=Formulario!$K$12,N176+1,N176) -> 177
A178: 177 | L178: 0 | N178: =IF(I177=Formulario!$K$12,N177+1,N177) -> 178
A179: 178 | L179: 0 | N179: =IF(I178=Formulario!$K$12,N178+1,N178) -> 179
A180: 179 | L180: 0 | N180: =IF(I179=Formulario!$K$12,N179+1,N179) -> 180
A181: 180 | L181: 0 | N181: =IF(I180=Formulario!$K$12,N180+1,N180) -> 181
A182: 181 | L182: 0 | N182: =IF(I181=Formulario!$K$12,N181+1,N181) -> 182
A183: 182 | L183: 0 | N183: =IF(I182=Formulario!$K$12,N182+1,N182) -> 183
A184: 183 | L184: 0 | N184: =IF(I183=Formulario!$K$12,N183+1,N183) -> 184
A185: 184 | L185: 0 | N185: =IF(I184=Formulario!$K$12,N184+1,N184) -> 185
A186: 185 | L186: 0 | N186: =IF(I185=Formulario!$K$12,N185+1,N185) -> 186
A187: 186 | L187: 0 | N187: =IF(I186=Formulario!$K$12,N186+1,N186) -> 187
A188: 187 | L188: 0 | N188: =IF(I187=Formulario!$K$12,N187+1,N187) -> 188
A189: 188 | L189: 0 | N189: =IF(I188=Formulario!$K$12,N188+1,N188) -> 189
A190: 189 | L190: 0 | N190: =IF(I189=Formulario!$K$12,N189+1,N189) -> 190
A191: 190 | L191: 0 | N191: =IF(I190=Formulario!$K$12,N190+1,N190) -> 191
A192: 191 | L192: 0 | N192: =IF(I191=Formulario!$K$12,N191+1,N191) -> 192
A193: 192 | L193: 0 | N193: =IF(I192=Formulario!$K$12,N192+1,N192) -> 193
A194: 193 | L194: 0 | N194: =IF(I193=Formulario!$K$12,N193+1,N193) -> 194
A195: =ROW(A194) -> 194 | L195: =IF(I195<>I194,L194+1,L194) -> 0 | M195: =IF($A195=1,"",IF(LOOKUP($A195-1,L:L,I:I)="","",LOOKUP($A195-1,L:L,I:I))) ->  | N195: =IF(I194=Formulario!$K$12,N194+1,N194) -> 195 | O195: =IF($A195=1,"",IF(LOOKUP($A195-1,N:N,J:J)="","",LOOKUP($A195-1,N:N,J:J))) -> 
A196: 195 | L196: 0 | N196: =IF(I195=Formulario!$K$12,N195+1,N195) -> 196
A197: 196 | L197: 0 | N197: =IF(I196=Formulario!$K$12,N196+1,N196) -> 197
A198: 197 | L198: 0 | N198: =IF(I197=Formulario!$K$12,N197+1,N197) -> 198
A199: 198 | L199: 0 | N199: =IF(I198=Formulario!$K$12,N198+1,N198) -> 199
A200: 199 | L200: 0 | N200: =IF(I199=Formulario!$K$12,N199+1,N199) -> 200
... 101 more rows
